bitfinex/quotes_ETHUSD_20230110
["timestamp","ask_amount","ask_price","bid_price","bid_amount"]
[1673375799091,1.36807446,1340.1,1340.0,1.00740612]
[1673375799357,1.36807446,1340.1,1340.0,8.47008612]
[1673375799588,1.36807446,1340.1,1340.0,8.56808612]
[1673375799938,1.36807446,1340.1,1340.0,1.10540612]
[1673375800302,1.36807446,1340.1,1340.0,8.47008612]
[1673375800495,1.36807446,1340.1,1340.0,8.56808612]
[1673375801035,1.36807446,1340.1,1340.0,15.93076612]
[1673375802802,1.36807446,1340.1,1340.0,1.00540612]
[1673375803000,1.84600973,1340.1,1340.0,0.90740612]
[1673375803928,3.93612874,1340.1,1340.0,0.90740612]
[1673375804263,14.39824874,1340.1,1339.7,22.85163]
[1673375804464,14.39824874,1340.1,1339.7,26.64929064]
[1673375805659,21.86036874,1340.1,1339.7,11.72126064]
[1673375805830,29.32248874,1340.1,1339.7,11.72126064]
[1673375806041,21.86036874,1340.1,1339.7,19.18550064]
[1673375806702,2.18603687,1340.0,1339.7,19.18550064]
[1673375806863,5.43815588,1340.0,1339.7,7.9236]
[1673375807074,10.40095588,1340.0,1339.7,7.9236]
[1673375807302,2.93815588,1340.0,1339.7,15.38795]
[1673375809040,10.40090588,1340.0,1339.7,7.9236]
[1673375809197,10.40090588,1340.0,1339.7,15.38792]
[1673375809617,11.73290588,1340.0,1339.7,7.9236]
[1673375809884,1.7922096,1339.9,1339.7,7.9236]
[1673375810051,1.04009059,1339.9,1339.7,7.9236]
[1673375810833,1.04009059,1339.9,1339.7,0.098]
[1673375811045,3.58403687,1340.0,1339.7,7.46434]
[1673375811354,3.51803687,1340.0,1339.7,0.098]
[1673375811539,3.51803687,1340.0,1339.6,23.18286]
[1673375811735,3.51803687,1340.0,1339.6,30.64755]
[1673375811941,6.01803687,1340.0,1339.6,30.64755]
[1673375812155,0.60180369,1339.9,1339.6,30.64755]
[1673375816395,0.60180369,1339.9,1339.6,15.71809]
[1673375816561,8.06506369,1339.9,1339.6,8.2534]
[1673375817446,9.39506369,1339.9,1339.6,8.2534]
[1673375817681,11.89506369,1339.9,1339.6,8.2534]
[1673375817864,1.18950637,1339.8,1339.6,8.2534]
[1673375818077,3.68950637,1339.8,1339.6,8.2534]
[1673375818402,1.18950637,1339.8,1339.6,0.098]
[1673375818566,1.18950637,1339.8,1339.5,9.5403]
[1673375818782,8.65332637,1339.8,1339.5,9.5403]
[1673375818998,8.65332637,1339.8,1339.5,0.098]
[1673375819299,8.65332637,1339.8,1339.4,23.29134]
[1673375819300,8.65332637,1339.8,1339.4,23.38934]
[1673375819663,8.65332637,1339.8,1339.4,27.18700064]
[1673375819876,1.18950637,1339.8,1339.4,39.52718268]
[1673375821208,10.09880369,1339.9,1339.4,39.52718268]
[1673375821426,10.03280369,1339.9,1339.4,39.52718268]
[1673375822711,8.101,1339.9,1339.4,45.63691475]
[1673375822881,8.101,1339.9,1339.6,22.3944]
[1673375823099,8.101,1339.9,1339.6,22.4924]
[1673375823530,7.5411,1339.9,1339.6,22.4924]
[1673375823753,7.5411,1339.9,1339.6,22.48892633]
[1673375825063,7.5411,1339.9,1339.6,7.55932633]
[1673375825209,10.49906469,1339.9,1339.6,7.55932633]
[1673375825412,10.49906469,1339.9,1339.6,22.48914633]
[1673375825614,10.49906469,1339.9,1339.6,15.02423633]
[1673375826353,10.49906469,1339.9,1339.6,22.48914633]
[1673375828131,10.49906469,1339.9,1339.6,15.02423633]
[1673375828341,10.49906469,1339.9,1339.6,7.55932633]
[1673375829442,7.5411,1339.9,1339.6,16.66011296]
[1673375829629,7.5411,1339.9,1339.8,14.9276]
[1673375829866,3.0,1339.9,1339.8,15.0256]
[1673375830167,3.0,1339.9,1339.8,7.5618]
[1673375830497,3.0,1339.9,1339.8,15.0256]
[1673375830704,3.0,1339.9,1339.8,7.5618]
[1673375831394,3.0,1339.9,1339.8,15.0256]
[1673375831600,3.0,1339.9,1339.8,7.5618]
[1673375832063,3.0,1339.9,1339.8,15.0256]
[1673375832385,11.0576,1340.0,1339.8,7.5618]
[1673375832629,9.72677446,1340.1,1339.8,24.738341]
[1673375832809,9.66077446,1340.1,1339.8,24.738341]
[1673375833629,9.66077446,1340.1,1339.8,28.40968384]
[1673375833630,9.10097446,1340.1,1339.8,28.40968384]
[1673375833839,9.10097446,1340.1,1339.9,5.34096838]
[1673375833840,1.36807446,1340.1,1339.9,5.34096838]
[1673375834119,1.36807446,1340.1,1340.0,22.38804]
[1673375834454,1.36807446,1340.1,1340.0,22.48604]
[1673375836757,1.36807446,1340.1,1340.0,26.28370064]
[1673375837011,1.36807446,1340.1,1340.0,32.62595162]
[1673375837012,0.1,1340.1,1340.0,32.62595162]
[1673375837232,0.41127824,1340.2,1340.1,3.61105185]
[1673375837233,0.34527824,1340.2,1340.1,3.61105185]
[1673375837535,0.34527824,1340.2,1340.1,29.79507249]
[1673375837697,0.34527824,1340.2,1340.1,29.89307249]
[1673375838223,0.34527824,1340.2,1340.1,33.54891961]
[1673375838590,0.34527824,1340.2,1340.1,34.20238005]
[1673375838796,0.34527824,1340.2,1340.1,32.87738005]
[1673375844990,0.34527824,1340.2,1340.1,34.21538005]
[1673375845365,0.34527824,1340.2,1340.1,37.87145751]
[1673375845537,0.34527824,1340.2,1340.1,34.21538005]
[1673375845739,0.34527824,1340.2,1340.1,37.87141211]
[1673375845956,0.34527824,1340.2,1340.1,34.21538005]
[1673375846300,0.34527824,1340.2,1340.1,37.87103583]
[1673375846521,0.34527824,1340.2,1340.1,39.20903583]
[1673375849009,0.25645384,1340.5,1340.3,1.53871659]
[1673375849331,3.84e-06,1340.5,1340.4,33.7933323]
[1673375849568,3.84e-06,1340.5,1340.4,0.25187166]
[1673375849756,3.84e-06,1340.5,1340.3,16.45998659]
[1673375849960,3.84e-06,1340.5,1340.3,12.89494723]
[1673375850175,0.75211901,1340.4,1340.3,12.89494723]
[1673375850517,0.75211901,1340.4,1340.3,12.89538723]
[1673375850857,3.84e-06,1340.5,1340.3,14.23338723]
[1673375850985,3.84e-06,1340.5,1340.4,5.22099936]
[1673375851190,3.84e-06,1340.5,1340.4,5.31899936]
[1673375851407,3.84e-06,1340.5,1340.4,12.77944936]
[1673375851864,3.84e-06,1340.5,1340.4,5.31899936]
[1673375852027,3.84e-06,1340.5,1340.4,5.21899936]
[1673375852238,3.84e-06,1340.5,1340.4,0.098]
[1673375852447,3.84e-06,1340.5,1340.3,1.53871659]
[1673375852448,23.13182285,1340.5,1340.3,1.53871659]
[1673375852730,16.23152285,1340.5,1340.3,1.53871659]
[1673375852881,0.75211901,1340.4,1340.3,1.53871659]
[1673375853344,26.69316901,1340.4,1340.3,1.53871659]
[1673375853552,36.81473694,1340.4,1340.3,1.53871659]
[1673375854978,36.91473694,1340.4,1340.3,1.53871659]
[1673375856914,36.91473694,1340.4,1340.2,1.03583471]
[1673375857075,4.6277,1340.3,1340.2,1.03583471]
[1673375857436,31.56050965,1340.3,1340.1,1.11105185]
[1673375857654,9.92443064,1340.2,1340.1,1.11105185]
[1673375857815,33.29125965,1340.2,1340.1,1.11105185]
[1673375858014,33.85095965,1340.2,1340.1,1.11105185]
[1673375864861,33.85095965,1340.2,1340.1,1.85e-06]
[1673375865074,41.96585965,1340.2,1340.1,1.85e-06]
[1673375866842,41.21374064,1340.2,1340.1,1.85e-06]
[1673375867059,41.96585965,1340.2,1340.1,1.85e-06]
[1673375867850,46.94988821,1340.2,1340.1,1.85e-06]
[1673375868169,47.01277821,1340.2,1340.1,1.85e-06]
[1673375868333,51.50277821,1340.2,1340.1,1.85e-06]
[1673375868767,52.28250297,1340.2,1340.1,1.85e-06]
[1673375869199,48.62747441,1340.2,1340.1,1.85e-06]
[1673375869713,48.62356821,1340.2,1340.1,1.85e-06]
[1673375871208,60.14557692,1340.2,1340.1,1.85e-06]
[1673375871416,71.41470821,1340.2,1340.1,1.85e-06]
[1673375871940,63.95313821,1340.2,1340.1,1.85e-06]
[1673375872893,63.2010192,1340.2,1340.1,1.85e-06]
[1673375873104,63.95313821,1340.2,1340.1,1.85e-06]
[1673375875257,77.95313821,1340.2,1340.1,1.85e-06]
[1673375876878,77.2010192,1340.2,1340.1,1.85e-06]
[1673375877191,77.95313821,1340.2,1340.1,1.85e-06]
[1673375878615,76.61513821,1340.2,1340.1,1.85e-06]
[1673375879720,77.94413821,1340.2,1340.1,1.85e-06]
[1673375881359,81.59646028,1340.2,1340.1,1.85e-06]
[1673375881589,77.94413821,1340.2,1340.1,1.85e-06]
[1673375887985,77.94413821,1340.2,1339.4,8.05724089]
[1673375887986,4.49,1340.0,1339.4,7.66585219]
[1673375888179,1.338,1339.8,1339.4,9.05730076]
[1673375888425,26.42104064,1339.7,1339.4,9.05730076]
[1673375888598,27.18715965,1339.7,1339.4,9.07534165]
[1673375889897,27.18915965,1339.7,1339.4,9.07234165]
[1673375890224,27.18715965,1339.7,1339.4,9.07534165]
[1673375890859,26.43504064,1339.7,1339.4,9.07534165]
[1673375891024,27.18715965,1339.7,1339.4,9.07534165]
[1673375891612,3.79766064,1339.6,1339.4,7.68589308]
[1673375891801,31.42988,1339.5,1339.4,7.68589308]
[1673375891963,32.19599901,1339.5,1339.4,0.11004089]
[1673375892178,32.19599901,1339.5,1339.4,0.01804089]
[1673375892425,38.99365965,1339.5,1339.4,8.9e-07]
[1673375892590,48.36656695,1339.5,1339.4,8.9e-07]
[1673375893376,49.75545695,1339.5,1339.4,8.9e-07]
[1673375894500,57.89625509,1339.5,1339.4,8.9e-07]
[1673375894705,65.43735509,1339.5,1339.4,8.9e-07]
[1673375894911,61.78655695,1339.5,1339.4,8.9e-07]
[1673375895901,65.43770913,1339.5,1339.4,8.9e-07]
[1673375897085,72.90317913,1339.5,1339.4,8.9e-07]
[1673375897246,69.25202695,1339.5,1339.4,8.9e-07]
[1673375897461,61.78655695,1339.5,1339.4,8.9e-07]
[1673375898242,61.03443794,1339.5,1339.4,8.9e-07]
[1673375898559,72.15136368,1339.5,1339.4,8.9e-07]
[1673375898719,80.01936368,1339.5,1339.4,8.9e-07]
[1673375898924,77.12002695,1339.5,1339.4,8.9e-07]
[1673375899139,82.09748041,1339.5,1339.4,8.9e-07]
[1673375899375,78.44602695,1339.5,1339.4,8.9e-07]
[1673375899674,82.09645448,1339.5,1339.4,8.9e-07]
[1673375900078,82.09645448,1339.5,1339.3,0.07091522]
[1673375900079,80.77045448,1339.5,1339.3,6.11e-06]
[1673375900329,22.89018615,1339.4,1339.3,6.11e-06]
[1673375900574,45.53224615,1339.4,1339.3,6.11e-06]
[1673375900708,54.15236516,1339.4,1339.3,6.11e-06]
[1673375901917,57.80314096,1339.4,1339.3,6.11e-06]
[1673375902308,59.75353321,1339.4,1339.3,6.11e-06]
[1673375902912,56.10275971,1339.4,1339.3,6.11e-06]
[1673375903774,59.75289024,1339.4,1339.3,6.11e-06]
[1673375903975,56.10275971,1339.4,1339.3,6.11e-06]
[1673375904714,59.75289035,1339.4,1339.3,6.11e-06]
[1673375905138,56.10275971,1339.4,1339.3,6.11e-06]
[1673375905393,59.75289035,1339.4,1339.3,6.11e-06]
[1673375905920,56.10275971,1339.4,1339.3,6.11e-06]
[1673375906084,56.10275971,1339.4,1339.0,0.01920353]
[1673375906085,6.99,1339.3,1339.0,0.01920353]
[1673375906295,1.338,1339.1,1339.0,0.01920353]
[1673375906542,26.65672225,1339.1,1339.0,0.01920353]
[1673375906715,27.42284126,1339.1,1339.0,0.01920353]
[1673375907350,33.27684126,1339.1,1339.0,0.01920353]
[1673375907708,10.64777965,1339.1,1339.0,0.01920353]
[1673375907917,15.38652657,1339.1,1339.0,0.01920353]
[1673375908089,22.85422657,1339.1,1339.0,0.01920353]
[1673375908514,22.85622657,1339.1,1339.0,0.01920353]
[1673375908727,22.85422657,1339.1,1339.0,0.01920353]
[1673375909129,30.32192657,1339.1,1339.0,0.01920353]
[1673375909599,13.5657,1339.1,1339.0,0.01920353]
[1673375910285,28.5011,1339.1,1339.0,0.01920353]
[1673375910496,6.098,1339.1,1339.0,0.01920353]
[1673375910749,5.868,1339.1,1339.0,0.01920353]
[1673375910919,5.868,1339.1,1339.0,1.09220353]
[1673375911137,5.868,1339.1,1339.0,18.80284424]
[1673375911369,5.868,1339.1,1339.0,18.89484424]
[1673375912807,5.868,1339.1,1339.0,27.69509424]
[1673375913272,5.868,1339.1,1339.0,31.34717394]
[1673375913440,5.868,1339.1,1339.0,41.8918592]
[1673375913441,9.06e-06,1339.1,1339.0,41.8918592]
[1673375913808,0.75211901,1339.6,1339.3,2.5]
[1673375914118,0.066,1339.9,1339.5,10.13003]
[1673375914336,38.63460901,1340.0,1339.5,15.0225]
[1673375914484,57.35850965,1340.0,1339.7,1.338]
[1673375914695,27.49850965,1340.0,1339.7,1.338]
[1673375915013,26.93870965,1340.0,1339.7,1.338]
[1673375916428,26.93870965,1340.0,1339.7,1.6056]
[1673375916610,19.47547965,1340.0,1339.7,1.6056]
[1673375917163,8.21480901,1340.0,1339.7,1.6056]
[1673375917760,15.67803901,1340.0,1339.7,1.6056]
[1673375918591,16.23783901,1340.0,1339.7,1.6056]
[1673375919030,27.49872965,1340.0,1339.6,1.43]
[1673375919262,3.79766064,1339.9,1339.5,9.6483]
[1673375919438,25.62173,1339.8,1339.5,8.3173]
[1673375919805,26.37384901,1339.8,1339.5,0.092]
[1673375920105,26.37384901,1339.8,1339.4,1.588]
[1673375920315,26.37384901,1339.8,1339.5,0.1588]
[1673375920651,8.21669901,1339.7,1339.4,1.588]
[1673375920944,8.21669901,1339.7,1339.3,1.424]
[1673375920945,23.04562901,1339.7,1339.3,1.424]
[1673375921156,3.0,1339.6,1339.2,19.0728]
[1673375921466,2.0,1339.5,1339.2,1.43]
[1673375921675,2.0,1339.5,1339.2,2.227929]
[1673375921900,9.46569,1339.5,1339.2,2.227929]
[1673375922046,17.68349901,1339.5,1339.2,2.227929]
[1673375922259,17.68349901,1339.5,1339.2,1.338]
[1673375922470,15.68349901,1339.5,1339.2,1.338]
[1673375922741,8.21780901,1339.5,1339.2,1.338]
[1673375922918,8.21780901,1339.5,1339.2,8.80511]
[1673375923131,0.75211901,1339.5,1339.2,8.89711]
[1673375923353,0.75211901,1339.5,1339.2,11.280526]
[1673375924684,0.75211901,1339.5,1339.2,18.747666]
[1673375926356,0.75211901,1339.5,1339.2,11.280526]
[1673375927555,0.75211901,1339.5,1339.3,1.334]
[1673375927980,8.21761901,1339.5,1339.3,1.334]
[1673375928458,7.4675,1339.5,1339.3,1.334]
[1673375928668,14.931,1339.5,1339.3,1.334]
[1673375929198,15.68311901,1339.5,1339.3,1.334]
[1673375929774,15.68311901,1339.5,1339.2,1.43]
[1673375929965,15.68311901,1339.5,1339.2,2.22794]
[1673375930830,15.68311901,1339.5,1339.3,1.338]
[1673375932215,23.14861901,1339.5,1339.3,1.338]
[1673375932786,15.68311901,1339.5,1339.3,1.338]
[1673375934707,7.4655,1339.5,1339.3,1.338]
[1673375935137,8.21761901,1339.5,1339.3,1.338]
[1673375938810,8.21761901,1339.5,1339.2,1.338]
[1673375939024,15.68311901,1339.5,1339.2,2.227964]
[1673375939235,23.14861901,1339.5,1339.2,1.338]
[1673375939869,23.70861901,1339.5,1339.2,1.338]
[1673375940300,23.70861901,1339.5,1339.1,1.333]
[1673375940491,31.21531901,1339.5,1339.1,1.333]
[1673375942832,0.75211901,1339.5,1339.2,5.12866064]
[1673375943037,5.01588041,1339.6,1339.4,2.663]
[1673375943038,0.066,1339.6,1339.4,2.663]
[1673375943250,37.4068,1339.8,1339.4,16.26982]
[1673375943580,8.1067,1339.8,1339.4,16.36182]
[1673375943736,8.1067,1339.8,1339.4,23.82784]
[1673375944152,3.0,1339.7,1339.4,23.82784]
[1673375944359,3.0,1339.7,1339.5,18.638254]
[1673375944675,3.0,1339.7,1339.5,18.730254]
[1673375945978,3.0,1339.7,1339.5,18.72705413]
[1673375947362,3.0,1339.7,1339.5,18.72711413]
[1673375947571,3.0,1339.7,1339.5,11.26164413]
[1673375948356,0.6259,1339.8,1339.6,6.28916441]
[1673375948563,23.5397,1340.0,1339.6,19.98542441]
[1673375948564,0.5599,1339.7,1339.6,19.98542441]
[1673375948822,0.5599,1339.9,1339.7,0.55989999]
[1673375949036,8.3023,1340.0,1339.8,2.676]
[1673375949211,0.5598,1340.0,1339.9,1.338]
[1673375949416,8.02248,1340.0,1339.9,1.338]
[1673375949626,11.02248,1340.0,1339.9,1.338]
[1673375950713,11.02248,1340.0,1339.8,1.338]
[1673375950902,3.0,1339.9,1339.8,1.338]
[1673375951310,10.46324,1339.9,1339.7,1.98389999]
[1673375951520,10.46324,1339.9,1339.7,1.89189999]
[1673375951724,3.0,1339.9,1339.7,1.89189999]
[1673375951950,10.46333,1339.9,1339.7,1.89189999]
[1673375952398,3.0,1339.9,1339.7,1.89189999]
[1673375953241,17.92705,1339.9,1339.7,1.89189999]
[1673375953460,10.46348,1339.9,1339.7,1.89189999]
[1673375953823,3.0,1339.9,1339.7,1.89189999]
[1673375954987,0.5599,1339.8,1339.7,1.89189999]
[1673375955425,10.46331,1339.9,1339.7,1.89189999]
[1673375955426,11.08921,1339.9,1339.7,1.89189999]
[1673375955638,13.624709,1339.9,1339.7,1.89189999]
[1673375956186,21.088019,1339.9,1339.7,1.89189999]
[1673375956503,3.5599,1339.9,1339.7,1.89189999]
[1673375956675,0.5599,1339.9,1339.8,1.338]
[1673375956885,3.5598,1340.0,1339.8,1.338]
[1673375960068,3.5598,1340.0,1339.7,16.90507999]
[1673375960391,7.79781751,1340.0,1339.7,15.58007999]
[1673375960915,7.79781751,1340.0,1339.7,8.11596999]
[1673375961147,3.5598,1340.0,1339.7,8.11596999]
[1673375961337,3.5598,1340.0,1339.7,16.91031999]
[1673375962178,3.5598,1340.0,1339.7,28.17233063]
[1673375962350,3.5598,1340.0,1339.8,1.338]
[1673375962561,3.5598,1340.0,1339.8,8.80179]
[1673375962893,3.5598,1340.0,1339.8,8.84379]
[1673375963293,3.5598,1340.0,1339.8,8.84374]
[1673375964687,3.5598,1340.0,1339.9,1.325]
[1673375964950,3.0,1340.0,1339.9,23.71472]
[1673375965070,0.6258,1340.1,1339.9,23.80672]
[1673375965291,0.5598,1340.1,1340.0,3.710672]
[1673375965641,0.5598,1340.1,1340.0,26.098712]
[1673375965850,0.5598,1340.1,1340.0,26.190712]
[1673375966073,0.77249186,1340.2,1340.0,26.190712]
[1673375966225,0.21279186,1340.2,1340.1,1.338]
[1673375966433,0.21279186,1340.2,1340.1,31.9934579]
[1673375966644,0.21279186,1340.2,1340.1,32.0854579]
[1673375967920,0.31279186,1340.2,1340.1,32.0854579]
[1673375968740,0.31279186,1340.2,1340.1,5.90143726]
[1673375968866,0.31279186,1340.2,1340.1,0.092]
[1673375968867,7.77436186,1340.2,1340.1,0.092]
[1673375969079,7.77436186,1340.2,1340.0,0.092]
[1673375969308,22.69750186,1340.2,1339.7,29.00379999]
[1673375969487,22.69750186,1340.2,1339.7,22.09526063]
[1673375969488,24.03350186,1340.2,1339.7,22.09526063]
[1673375969696,27.18958805,1340.2,1339.7,24.60478669]
[1673375969906,38.02878805,1340.2,1339.7,24.60478669]
[1673375971216,1.328,1340.0,1339.7,0.65189999]
[1673375971429,1.328,1340.0,1339.7,0.55989999]
[1673375971430,16.26448,1339.9,1339.7,0.55989999]
[1673375972153,8.80124,1339.9,1339.7,0.55989999]
[1673375972378,18.776577,1339.9,1339.7,0.55989999]
[1673375972599,9.975337,1339.9,1339.7,0.55989999]
[1673375972751,0.002,1339.9,1339.7,0.55989999]
[1673375972964,8.79071,1340.0,1339.7,0.55989999]
[1673375973376,16.25368,1340.0,1339.7,0.55989999]
[1673375975221,8.79071,1340.0,1339.7,0.55989999]
[1673375975741,23.71607,1340.0,1339.7,0.55989999]
[1673375975968,20.008087,1340.0,1339.7,0.55989999]
[1673375976102,27.470767,1340.0,1339.7,0.55989999]
[1673375976772,20.008087,1340.0,1339.7,0.55989999]
[1673375977210,27.470767,1340.0,1339.7,0.55989999]
[1673375977842,1.338,1339.8,1339.7,0.55989999]
[1673375978056,26.41919,1339.8,1339.7,0.55989999]
[1673375978423,29.41919,1339.8,1339.7,0.55989999]
[1673375978741,26.91919,1339.8,1339.7,0.55989999]
[1673375978955,3.0,1339.8,1339.7,0.55989999]
[1673375979368,0.066,1339.9,1339.7,8.02424999]
[1673375979609,15.48451,1340.1,1339.7,15.58059999]
[1673375979610,25.93736,1340.1,1339.7,15.58059999]
[1673375979826,18.4748,1340.1,1339.7,15.58059999]
[1673375980484,18.4748,1340.1,1339.7,0.65189999]
[1673375980485,1.328,1339.9,1339.7,0.65189999]
[1673375980630,22.3914,1339.8,1339.7,0.55989999]
[1673375980998,25.3914,1339.8,1339.7,0.55989999]
[1673375981360,26.7254,1339.8,1339.7,0.55989999]
[1673375981566,30.29309,1339.8,1339.7,0.55989999]
[1673375985199,30.29309,1339.8,1339.7,0.55742268]
[1673375987653,30.85299,1339.8,1339.7,0.55742268]
[1673375987774,41.97375755,1339.8,1339.7,0.55742268]
[1673375988223,38.29976965,1339.8,1339.7,0.55742268]
[1673375988413,48.84626965,1339.8,1339.7,0.55742268]
[1673375990009,52.52025755,1339.8,1339.7,2.68e-06]
[1673375990185,52.52025755,1339.8,1339.1,9.66800978]
[1673375990401,1.338,1339.4,1339.1,9.66800978]
[1673375990602,23.73687,1339.4,1339.1,0.12900978]
[1673375990812,23.73687,1339.4,1339.1,0.03700978]
[1673375992347,16.27047,1339.4,1339.1,0.03700978]
[1673375992510,16.33555,1339.5,1339.1,0.03700978]
[1673375992726,23.73549,1339.5,1339.1,1.56285211]
[1673375992956,23.73154863,1339.5,1339.1,1.56285211]
[1673375993547,24.29154863,1339.5,1339.1,1.56285211]
[1673375994287,24.29154863,1339.5,1339.1,0.03500978]
[1673375994713,24.29141863,1339.5,1339.1,0.03500978]
[1673375996955,22.39974,1339.3,1339.1,0.03500978]
[1673375998123,23.15185901,1339.3,1339.1,0.03500978]
[1673375998902,22.39974,1339.3,1339.1,0.03500978]
[1673375999116,23.15185901,1339.3,1339.1,0.03500978]
[1673375999746,15.68527901,1339.3,1339.1,0.03500978]
[1673376000429,24.48985901,1339.3,1339.1,0.03500978]
[1673376000640,17.02327901,1339.3,1339.1,0.03500978]
[1673376000833,16.27116,1339.3,1339.1,0.03500978]
[1673376001041,1.347,1339.4,1339.1,0.03500978]
[1673376001281,2.03311901,1339.4,1339.1,7.50258978]
[1673376001500,2.03311901,1339.4,1339.1,1.62596011]
[1673376001688,9.49925901,1339.4,1339.1,1.53396011]
[1673376002380,9.49925901,1339.4,1339.1,9.00159011]
[1673376002381,0.75211901,1339.4,1339.1,9.00159011]
[1673376002628,0.75211901,1339.4,1339.1,17.88312936]
[1673376002847,28.20502065,1339.7,1339.2,18.72205294]
[1673376003057,13.20954065,1339.7,1339.2,33.73938825]
[1673376003283,16.28393,1339.7,1339.2,33.73973284]
[1673376003504,16.28393,1339.7,1339.3,2.5]
[1673376003653,16.28393,1339.7,1339.3,9.96657]
[1673376003868,23.74846,1339.7,1339.4,0.996657]
[1673376004094,15.48896,1339.7,1339.4,0.996657]
[1673376004538,15.48896,1339.7,1339.3,2.5]
[1673376004757,8.02443,1339.7,1339.3,17.4328]
[1673376004948,0.5599,1339.7,1339.3,29.9865941]
[1673376005171,3.5599,1339.7,1339.3,29.9865941]
[1673376005372,11.02434,1339.7,1339.4,2.99865941]
[1673376007178,18.48878,1339.7,1339.4,2.99865941]
[1673376007486,18.48878,1339.7,1339.3,0.092]
[1673376007703,25.95322,1339.7,1339.2,39.52487358]
[1673376007854,18.48878,1339.7,1339.2,50.65289194]
[1673376008063,18.48878,1339.7,1339.2,45.65401358]
[1673376008286,19.24089901,1339.7,1339.2,38.18687358]
[1673376008542,19.24089901,1339.7,1339.3,11.28525736]
[1673376008756,19.24089901,1339.7,1339.3,11.37725736]
[1673376009862,26.70533901,1339.7,1339.3,3.91068736]
[1673376010176,26.70533901,1339.7,1339.3,3.81868736]
[1673376010868,31.39687291,1339.7,1339.3,3.81868736]
[1673376011173,0.75211901,1339.6,1339.2,23.25307358]
[1673376011345,14.9311,1339.5,1339.2,23.25307358]
[1673376011556,14.9311,1339.5,1339.2,15.03027358]
[1673376011965,14.9311,1339.5,1339.2,0.092]
[1673376012205,14.9311,1339.5,1339.1,17.54681011]
[1673376012206,15.4911,1339.5,1339.1,17.54681011]
[1673376012435,23.71079901,1339.5,1339.1,17.54379011]
[1673376012599,23.70879901,1339.5,1339.1,17.54679011]
[1673376013010,23.70879901,1339.5,1339.1,10.07916011]
[1673376013383,27.01349891,1339.5,1339.1,10.07916011]
[1673376013536,7.46658,1339.3,1339.1,8.58020978]
[1673376013752,7.46658,1339.3,1339.1,0.12700978]
[1673376014021,7.46658,1339.3,1339.1,0.03500978]
[1673376014218,23.80308,1339.4,1339.1,0.03500978]
[1673376014392,23.73708,1339.4,1339.1,0.03500978]
[1673376014848,16.27062,1339.4,1339.1,0.03500978]
[1673376015062,22.97203891,1339.5,1339.1,15.72242211]
[1673376015283,22.90603891,1339.5,1339.1,15.81442211]
[1673376015634,30.37150891,1339.5,1339.1,15.81442211]
[1673376015955,30.37150891,1339.5,1339.1,8.34672211]
[1673376017253,3.79766064,1339.4,1339.1,7.59448978]
[1673376017460,3.79766064,1339.4,1339.1,0.073]
[1673376017461,2.674,1339.2,1339.1,0.073]
[1673376017676,39.57022064,1339.2,1339.0,0.00200353]
[1673376017889,23.59800817,1339.1,1339.0,0.00200353]
[1673376018064,31.09987214,1339.1,1338.9,0.01920353]
[1673376018277,0.75211901,1339.0,1338.9,0.01920353]
[1673376018505,25.38427965,1339.0,1338.9,0.01920353]
[1673376018722,25.99647965,1339.0,1338.9,0.01920353]
[1673376018935,27.84395965,1339.0,1338.9,0.01920353]
[1673376019124,27.09184064,1339.0,1338.9,0.01920353]
[1673376020368,28.42184064,1339.0,1338.9,0.01920353]
[1673376020580,36.64220965,1339.0,1338.9,0.01920353]
[1673376021255,7.01968,1339.0,1338.9,0.01920353]
[1673376021674,21.95618,1339.0,1338.9,0.01920353]
[1673376021886,21.39598,1339.0,1338.9,0.01920353]
[1673376022425,22.73398,1339.0,1338.9,0.01920353]
[1673376022579,23.29418,1339.0,1338.9,0.01920353]
[1673376023368,30.76243,1339.0,1338.9,0.01920353]
[1673376024216,8.35768,1339.0,1338.9,0.01920353]
[1673376024438,15.59593,1339.0,1338.9,0.01920353]
[1673376024740,23.06418,1339.0,1338.9,0.01920353]
[1673376024981,30.53243,1339.0,1338.9,0.01920353]
[1673376025644,29.19443,1339.0,1338.9,0.01920353]
[1673376026487,29.19443,1339.0,1338.9,0.42890399]
[1673376028917,31.28354901,1339.0,1338.9,0.42890399]
[1673376029128,32.26566802,1339.0,1338.9,0.42890399]
[1673376029355,31.51354901,1339.0,1338.9,0.42890399]
[1673376030334,30.18354901,1339.0,1338.9,0.42890399]
[1673376032316,33.98120965,1339.0,1338.9,0.42890399]
[1673376032958,7.88812097,1338.9,1338.7,0.02243365]
[1673376033270,29.20577064,1338.8,1338.7,0.02243365]
[1673376033481,30.00988965,1338.8,1338.7,0.02243365]
[1673376033633,30.23988965,1338.8,1338.7,0.02243365]
[1673376034162,12.83748901,1338.8,1338.7,0.02243365]
[1673376034372,20.86715901,1338.8,1338.7,0.02243365]
[1673376034616,23.30135601,1338.8,1338.7,0.02243365]
[1673376034828,30.77072601,1338.8,1338.7,0.02243365]
[1673376035219,30.018607,1338.8,1338.7,0.02243365]
[1673376036094,40.851407,1338.8,1338.7,0.02243365]
[1673376037789,33.382037,1338.8,1338.7,0.02243365]
[1673376038001,40.851407,1338.8,1338.7,0.02243365]
[1673376038418,45.98706764,1338.8,1338.7,0.02243365]
[1673376040574,52.28546764,1338.8,1338.7,0.02243365]
[1673376042412,51.72516764,1338.8,1338.7,0.02243365]
[1673376043647,51.67516764,1338.8,1338.7,0.02243365]
[1673376045795,71.70425039,1338.8,1338.7,0.02243365]
[1673376046004,10.72865259,1338.7,1338.6,0.03710603]
[1673376046221,40.96272658,1338.7,1338.6,0.03710603]
[1673376046372,42.27598253,1338.7,1338.6,0.03710603]
[1673376046583,38.59331224,1338.7,1338.6,6.03e-06]
[1673376048600,41.26731224,1338.7,1338.6,6.03e-06]
[1673376049355,31.60331224,1338.7,1338.6,6.03e-06]
[1673376049577,30.81291224,1338.7,1338.6,6.03e-06]
[1673376050787,15.80666901,1338.7,1338.6,6.03e-06]
[1673376050996,0.86680901,1338.7,1338.6,6.03e-06]
[1673376051254,36.4205,1338.8,1338.6,6.03e-06]
[1673376051427,36.4065,1338.8,1338.6,6.03e-06]
[1673376051639,7.46993,1338.7,1338.6,6.03e-06]
[1673376051892,14.99186,1338.7,1338.6,6.03e-06]
[1673376052111,7.52193,1338.7,1338.6,6.03e-06]
[1673376052518,14.99186,1338.7,1338.6,6.03e-06]
[1673376052835,7.52193,1338.7,1338.6,6.03e-06]
[1673376053454,23.21390901,1338.7,1338.6,6.03e-06]
[1673376053786,28.42517391,1338.7,1338.6,6.03e-06]
[1673376053950,27.6730549,1338.7,1338.6,6.03e-06]